Workbook

Sheet 業務機會管理
A1: 案件編號 | B1: 合約客戶/夥伴 | C1: 實際客戶 | D1: 專案名稱 | E1: 負責業務 | F1: 專案(產品)內容 | G1: 預計取得訂單日期 | H1: 預計交貨日期 | I1: 預計驗收日期 | J1: 信心% | K1: 幣別 | L1: 全案總金額 A | M1: 外購成本 B | N1: 內部成本 C | O1: 全案毛利 A-B-C | P1: 年度可認列盈收(Rev.) | Q1: 年度可認列毛利(GP.) | R1: 進度說明
A2: 2016年2月
A3: 2015100003 | B3: 神通資科股份有限公司 | C3: 金融研訓院 | D3: 研訓院ERP開發案 | E3: 尚榮芬 | G3: 2016-02-01 | H3: 2016-11-30 | I3: 2016-12-30 | J3: 0.5 | K3: TWD | L3: 1000000 | M3: 100000 | N3: 500000 | O3: =L3-M3-N3 -> 400000 | P3: ? | Q3: ?
A4: 2015110001 | B4: 台灣文創 | C4: 台灣文創 | D4: 台灣文創ERP擴建案 | E4: 蓋冠宇 | G4: 2016-02-20 | H4: 2017-01-01 | I4: 2017-02-01 | J4: 1 | K4: RMB | L4: 500000 | M4: 0 | N4: 250000 | O4: =L4-M4-N4 -> 250000 | P4: ? | Q4: ?
A5: 小計 | L5: =SUM(L3:L4) -> 1500000 | M5: =SUM(M3:M4) -> 100000 | N5: 750000 | O5: =L5-M5-N5 -> 650000 | P5: 加總 | Q5: 加總
A6: 2016年3月
A7: 2015100004 | B7: 福特六和 | C7: 福特六和 | D7: e-HR開發案 | E7: 蓋冠宇 | G7: 2016-03-01 | H7: 2017-05-01 | I7: 2017-06-01 | J7: 0.9 | K7: TWD | L7: 1500000 | M7: 0 | N7: 800000 | O7: =L7-M7-N7 -> 700000 | P7: ? | Q7: ?
A8: 小計 | L8: =SUM(L7) -> 1500000 | M8: =SUM(M7) -> 0 | N8: 800000 | O8: =L8-M8-N8 -> 700000

Sheet 專案基本資料
A1: 專案基本資料
A2: 專案名稱： | B2: 產品銷售技術及技術移轉
A3: 客戶名稱：
A4: 承辦人聯絡資料： | B4: 姓名：
B5: 電話：
B6: 地址：
B7: E-Mail：
A8: 統一編號
A9: 付款條件 | B9: 0.3 | C9: 0.2 | D9: 0.3 | E9: 0.2 | F9: =SUM(B9:E9) -> 1
B10: 300000 | C10: 200000 | D10: 300000 | E10: 200000 | F10: =SUM(B10:E10) -> 1000000
A11: 預計請款日期 | B11: 2016-01-01 | C11: 2016-03-10 | D11: 2016-07-01 | E11: 2016-12-30
A12: 專案啟始日期 | B12: 2016-01-01 | D12: 專案啟始日期 | E12: 2016-01-01
A13: 專案結案日期 | B13: 2016-12-31 | D13: 專案結案日期
A14: 預計執行天數： | B14: =IF(B13<>"",B13-B12,"") -> 365 | D14: 實際執行天數 | E14: =IF(E13<>"",E13-E12,"") -> 
A15: 預計投入專案人力： | B15: 角色 | E15: 姓名 | F15: 人數
A16: 業務團隊 | B16: 業務主管 | F16: 1
B17: 業務助理 | F17: 1
A18: 專案團隊 | B18: 專案經理 | F18: 1
B19: 專案助理 | F19: 1
B20: 資深系統分析師 | F20: 1
B21: 助理系統分析師 | F21: 1
B22: 文件撰寫人員 | F22: 1
B23: 系統測試工程師 | F23: 1
A24: 專案成本： | B24: 900000
A25: 專案預算： | B25: =F10 -> 1000000
A26: 專案淨利： | B26: =B25-B24 -> 100000

Sheet 專案委外基本資料
A1: 專案名稱： | B1: 產品銷售技術及技術移轉
A2: 委外廠商名稱： | B2: 誠杏資訊
A3: 承辦人聯絡資料： | B3: 姓名：
B4: 電話：
B5: 地址：
B6: E-Mail：
A7: 統一編號
A8: 付款條件 | B8: 0.3 | C8: 0.2 | D8: 0.3 | E8: 0.2 | F8: =SUM(B8:E8) -> 1
B9: 120000 | C9: 80000 | D9: 120000 | E9: 80000 | F9: =SUM(B9:E9) -> 400000
A10: 預計付款日期 | B10: 2016-02-01 | C10: 2016-04-10 | D10: 2016-08-01 | E10: 2017-01-30
A11: 專案啟始日期 | B11: 2016-01-01 | D11: 專案啟始日期 | E11: 2016-01-01
A12: 專案結案日期 | B12: 2016-12-31 | D12: 專案結案日期
A13: 預計執行天數： | B13: =IF(B12<>"",B12-B11,"") -> 365 | D13: 實際執行天數 | E13: =IF(E12<>"",E12-E11,"") -> 
A15: 專案名稱： | B15: 產品銷售技術及技術移轉
A16: 委外廠商名稱： | B16: 天心資訊
A17: 承辦人聯絡資料： | B17: 姓名：
B18: 電話：
B19: 地址：
B20: E-Mail：
A21: 統一編號
A22: 付款條件 | B22: 0.3 | C22: 0.2 | D22: 0.3 | E22: 0.2 | F22: =SUM(B22:E22) -> 1
B23: 100000 | C23: 80000 | D23: 100000 | E23: 80000 | F23: =SUM(B23:E23) -> 360000
A24: 預計付款日期 | B24: 2016-02-01 | C24: 2016-04-10 | D24: 2016-08-01 | E24: 2017-01-30
A25: 專案啟始日期 | B25: 2016-01-01 | D25: 專案啟始日期 | E25: 2016-01-01
A26: 專案結案日期 | B26: 2016-12-31 | D26: 專案結案日期
A27: 預計執行天數： | B27: =IF(B26<>"",B26-B25,"") -> 365 | D27: 實際執行天數 | E27: =IF(E26<>"",E26-E25,"") -> 

Sheet 成本計算清單
A1: 成本類別 | B1: 成本子類別 | C1: 成本項目 | D1: 成本基數 | E1: 預估金額 | G1: 實際金額 | I1: 備註
E2: 單位數 | F2: 成本 | G2: 單位數 | H2: 成本
A3: 人事成本 | B3: 專案管理 | C3: 資深專案經理 | D3: 80000 | F3: =E3*D3 -> 0 | G3: 0
C4: 專案經理 | D4: 50000 | E4: 0 | F4: =E4*D4 -> 0 | G4: 0
C5: 助理專案經理 | D5: 25000 | E5: 0 | F5: 0 | G5: 0
B6: 系統分析 | C6: 資深系統分析師 | D6: 80000 | E6: 0 | F6: 0 | G6: 0
C7: 助理系統分析師 | D7: 40000 | E7: 0 | F7: 0 | G7: 0
C8: 內部文件撰寫 | D8: 25000 | E8: 0 | F8: 0 | G8: 0
C9: 資料庫規劃 | D9: 50000 | E9: 0 | F9: 0 | G9: 0
B10: 程式開發 | C10: 架構師開發費用 | D10: 80000 | E10: 0 | F10: 0 | G10: 0
C11: 資深程式工程師 | D11: 50000 | E11: 0 | F11: 0 | G11: 0
C12: 初階程式工程師 | D12: 32000 | E12: 0 | F12: 0 | G12: 0
B13: 系統測試 | C13: 初階程式工程師 | D13: 32000 | E13: 0 | F13: 0 | G13: 0
B14: 美工 | C14: 美工設計 | D14: 32000 | E14: 0 | F14: 0 | G14: 0
A15: 小計 | F15: =SUM(F3:F14) -> 0
A16: 外部費用 | B16: 委外開發 | C16: 委外開發費用 | D16: 0 | E16: 0 | F16: =E16*D16 -> 0 | G16: 0
C17: 委外美工設計 | D17: 0 | E17: 0 | F17: =E17*D17 -> 0 | G17: 0
C18: 委外文件撰寫 | D18: 0 | E18: 0 | F18: 0 | G18: 0
C19: 委外人力費用 | D19: 0 | E19: 0 | F19: 0 | G19: 0
B20: 元件採購 | C20: 第三方元件採購 | D20: 0 | E20: 0 | F20: 0 | G20: 0
C21: Vbto 轉置程式採購 | D21: 0 | E21: 0 | F21: 0 | G21: 0
C22: VisualStyler.Net | D22: 0 | E22: 0 | F22: 0 | G22: 0
C23: 代購教育訓練費用 | D23: 0 | E23: 0 | F23: 0 | G23: 0
C24: 顧問服務採購 | D24: 0 | E24: 0 | F24: 0
B25: 獎金 | C25: 外部業務獎金 | D25: 0 | E25: 0 | F25: 0 | G25: 0
C26: 外部專案獎金 | D26: 0 | E26: 0 | F26: 0
A27: 小計 | F27: =SUM(F16:F26) -> 0
A28: 其它費用 | B28: 交通費 | C28: 交通費補貼 | D28: 0 | E28: 0 | F28: =E28*D28 -> 0 | G28: 0 | I28: 汽車：每公里4元 機車：每公里2元
B29: 標案規費 | C29: 標書採購費 | D29: 0 | E29: 0 | F29: =E29*D29 -> 0 | G29: 0 | I29: 成本基數：次
B30: 雜項費用 | C30: 文件影印費 | D30: 0.7 | E30: 0 | F30: 0 | G30: 0 | I30: 成本基數：頁
C31: 文件裝訂費 | D31: 30 | E31: 0 | F31: =E31*D31 -> 0 | G31: 0 | I31: 成本基數：本
B32: 交際費 | C32: 用餐費用 | D32: 0 | E32: 0 | F32: =E32*D32 -> 0 | G32: 0
B33: 交際費 | C33: 交際費 | D33: 0 | E33: 0 | F33: 0 | G33: 0
B34: 設備採購費 | C34: 硬體採購費 | D34: 0 | E34: 0 | F34: 0 | G34: 0
B35: 系統採購費 | C35: 官方授權採購費 | D35: 0 | E35: 0 | F35: 0 | G35: 0
B36: 獎金 | C36: 內部業務獎金 | D36: 0 | E36: 0 | F36: 0 | G36: 0
C37: 內部專案獎金 | D37: 0 | E37: 0 | F37: 0 | G37: 0
A38: 小計 | F38: =SUM(F28:F37) -> 0
A39: 管理費 | B39: 管銷費用 | C39: 水電費 | D39: 0 | E39: 0 | F39: =E39*D39 -> 0 | G39: 0 | I39: 成本基數：工作天
C40: 電信費 | D40: 0 | E40: 0 | F40: =E40*D40 -> 0 | G40: 0 | I40: 成本基數：工作天
C41: 匯費 | D41: 0 | E41: 0 | F41: - | G41: 0
C42: 郵件費 | D42: 0 | E42: 0 | F42: 0 | G42: 0
A43: 小計 | F43: =SUM(F39:F42) -> 0
A44: 成本總計 | F44: =F15+F27+F38+F43 -> 0
A45: 稅額 | B45: 營業稅 | C45: 銷項稅額
B46: 營業稅 | C46: 進項稅額
B47: 營業稅 | C47: 營業稅 | D47: 0.05
B48: 所得稅 | C48: 所得稅 | D48: 0.03 | F48: =([1]專案基本資料!B25-成本計算清單!H44)*成本計算清單!D48 -> -3150
A49: 小計 | F49: =SUM(F47:F48) -> -3150
A50: 總成本+稅額 | F50: =F44+F49 -> -3150
D52: 為已經產生之成本
C53: 服務收入 | H53: =SUMIF([1]交易明細!C$2:C$985,"=" & C53,[1]交易明細!D$2:D$985) -> 

Sheet 交易明細
A1: 交易序號 | B1: 交易日期 | C1: 成本項目 | D1: 交易金額 | E1: 備註
A2: 1 | B2: 2015-06-26 | C2: 銷項稅額 | D2: 20250 | E2: 開立發票-QA52597458(405000+20250=425250)
A3: 2 | B3: 2015-07-20 | C3: 服務收入 | D3: 425250 | E3: 第1/4期款-QA52597458(405000+20250=425250)
A4: 3
A5: 4
A6: 5
A7: 6
A8: 7
A9: 8
A10: 9
A11: 10
A12: 11
A13: 12
A14: 13
A15: 14
A16: 15
A17: 16
A18: 17
A19: 18
A20: 19
A21: 20
A22: 21
A23: 22
A24: 23
A25: 24
A26: 25
A27: 26
A28: 27
A29: 28
A30: 29
A31: 30
A32: 31
A33: 32
A34: 33
A35: 34
A36: 35
A37: 36
A38: 37
A39: 38
A40: 39
A41: 40
A42: 41
A43: 42
A44: 43
A45: 44
A46: 45
A47: 46
A48: 47
A49: 48
A50: 49
A51: 50
A52: 51
A53: 52
A54: 53
A55: 54
A56: 55
A57: 56
A58: 57
A59: 58
A60: 59
A61: 60
A62: 61
A63: 62
A64: 63
A65: 64
A66: 65
A67: 66
A68: 67
A69: 68
A70: 69
A71: 70
A72: 71
A73: 72
A74: 73
A75: 74
A76: 75
A77: 76
A78: 77
A79: 78
A80: 79
A81: 80
A82: 81
A83: 82
A84: 83
A85: 84
A86: 85
A87: 86
A88: 87
A89: 88
A90: 89
A91: 90
A92: 91
A93: 92
